[Event "Early-Titled-Tuesday-Blitz-January-23-2024"]
[Site "Chess.com"]
[Date "2024.01.23"]
[Round "11"]
[White "viktorgen2021"]
[Black "Pliukha_Mikhail"]
[Result "0-1"]
[WhiteElo "2571"]
[BlackElo "2756"]
[TimeControl "180+1"]
[EndTime "10:09:48 PST"]
[Termination "Pliukha_Mikhail won by resignation"]

1. d4 {[%clk 0:03:00.3]} 1... Nf6 {[%clk 0:02:59.8]} 2. Nf3 {[%clk 0:03:00]}
2... e6 {[%clk 0:03:00.7]} 3. g3 {[%clk 0:02:58.4]} 3... b6 {[%clk 0:02:53.5]}
4. Bg2 {[%clk 0:02:57.6]} 4... Bb7 {[%clk 0:02:54.4]} 5. O-O {[%clk 0:02:58.2]}
5... Be7 {[%clk 0:02:54.9]} 6. c4 {[%clk 0:02:58.8]} 6... O-O {[%clk 0:02:55.1]}
7. Nc3 {[%clk 0:02:58.2]} 7... Ne4 {[%clk 0:02:55.7]} 8. Qc2 {[%clk 0:02:57.6]}
8... Nxc3 {[%clk 0:02:55.8]} 9. Qxc3 {[%clk 0:02:58.5]} 9... Be4 {[%clk
0:02:55.7]} 10. Rd1 {[%clk 0:02:58.2]} 10... c6 {[%clk 0:02:55.7]} 11. Bf4
{[%clk 0:02:54.7]} 11... d5 {[%clk 0:02:55.4]} 12. Rac1 {[%clk 0:02:54.4]} 12...
Nd7 {[%clk 0:02:54]} 13. Bf1 {[%clk 0:02:49.3]} 13... Rc8 {[%clk 0:02:53.6]} 14.
Nd2 {[%clk 0:02:48.4]} 14... Bg6 {[%clk 0:02:53.4]} 15. Bg2 {[%clk 0:02:48.5]}
15... a5 {[%clk 0:02:49.4]} 16. e4 {[%clk 0:02:46.3]} 16... Bb4 {[%clk
0:02:48.6]} 17. Qe3 {[%clk 0:02:40]} 17... Bxd2 {[%clk 0:02:37.5]} 18. Rxd2
{[%clk 0:02:39.1]} 18... dxe4 {[%clk 0:02:12.2]} 19. Bxe4 {[%clk 0:02:36.8]}
19... Bxe4 {[%clk 0:02:11]} 20. Qxe4 {[%clk 0:02:37.3]} 20... Nf6 {[%clk
0:02:11.5]} 21. Qf3 {[%clk 0:02:35]} 21... b5 {[%clk 0:01:58.2]} 22. Bg5 {[%clk
0:02:19]} 22... bxc4 {[%clk 0:01:57.4]} 23. Bxf6 {[%clk 0:02:16]} 23... Qxf6
{[%clk 0:01:57.4]} 24. Qxf6 {[%clk 0:02:15.3]} 24... gxf6 {[%clk 0:01:58.3]} 25.
Rxc4 {[%clk 0:02:15.9]} 25... Rfd8 {[%clk 0:01:59.2]} 26. Rdc2 {[%clk
0:02:06.7]} 26... Rd6 {[%clk 0:01:58.2]} 27. Kg2 {[%clk 0:01:54.8]} 27... Rcd8
{[%clk 0:01:57.4]} 28. Rxc6 {[%clk 0:01:48.9]} 28... Rxc6 {[%clk 0:01:58.3]} 29.
Rxc6 {[%clk 0:01:48.7]} 29... Rxd4 {[%clk 0:01:59.2]} 30. Rc5 {[%clk 0:01:38.5]}
30... Rd2 {[%clk 0:01:58.9]} 31. Rxa5 {[%clk 0:01:25.7]} 31... Rxb2 {[%clk
0:01:59.1]} 32. a4 {[%clk 0:01:26.1]} 32... Ra2 {[%clk 0:01:59.5]} 33. h3 {[%clk
0:01:25.5]} 33... Kg7 {[%clk 0:02:00]} 34. Ra7 {[%clk 0:01:23.3]} 34... f5
{[%clk 0:02:00.5]} 35. a5 {[%clk 0:01:23.4]} 35... e5 {[%clk 0:02:01]} 36. a6
{[%clk 0:01:21.7]} 36... e4 {[%clk 0:02:01.6]} 37. Ra8 {[%clk 0:01:21.3]} 37...
e3 {[%clk 0:02:01.6]} 38. a7 {[%clk 0:01:16.6]} 38... Rxf2+ {[%clk 0:02:00.8]}
39. Kg1 {[%clk 0:01:15.7]} 39... Ra2 {[%clk 0:02:00.6]} 40. Re8 {[%clk
0:01:15.8]} 40... Rxa7 {[%clk 0:01:54.9]} 41. Rxe3 {[%clk 0:01:15.4]} 41... Ra2
{[%clk 0:01:55.6]} 42. Rf3 {[%clk 0:01:13.4]} 42... Kg6 {[%clk 0:01:55.9]} 43.
Rb3 {[%clk 0:00:52.3]} 43... Re2 {[%clk 0:01:50.2]} 44. Kf1 {[%clk 0:00:51.2]}
44... Rh2 {[%clk 0:01:49.9]} 45. h4 {[%clk 0:00:39.3]} 45... Rc2 {[%clk
0:01:45.8]} 46. Rb7 {[%clk 0:00:36]} 46... f4 {[%clk 0:01:43.5]} 47. gxf4 {[%clk
0:00:34.9]} 47... Rc4 {[%clk 0:01:43.3]} 48. Kg2 {[%clk 0:00:33.7]} 48... Rxf4
{[%clk 0:01:41.8]} 49. Kg3 {[%clk 0:00:34.2]} 49... Rc4 {[%clk 0:01:41.7]} 50.
Rb6+ {[%clk 0:00:34.5]} 50... f6 {[%clk 0:01:41.7]} 51. Rb5 {[%clk 0:00:34.5]}
51... h5 {[%clk 0:01:41.5]} 52. Rb3 {[%clk 0:00:33.6]} 52... Rg4+ {[%clk
0:01:40.9]} 53. Kh3 {[%clk 0:00:34]} 53... Re4 {[%clk 0:01:40.7]} 54. Kg3 {[%clk
0:00:33.8]} 54... Kf5 {[%clk 0:01:39.7]} 55. Rf3+ {[%clk 0:00:33.4]} 55... Ke5
{[%clk 0:01:39.2]} 56. Ra3 {[%clk 0:00:34]} 56... Rg4+ {[%clk 0:01:39.1]} 57.
Kh3 {[%clk 0:00:33.6]} 57... Rd4 {[%clk 0:01:39.8]} 58. Kg3 {[%clk 0:00:32.5]}
58... f5 {[%clk 0:01:40]} 59. Re3+ {[%clk 0:00:27.6]} 59... Re4 {[%clk 0:01:39]}
60. Ra3 {[%clk 0:00:26.6]} 60... Rc4 {[%clk 0:01:36.3]} 61. Ra5+ {[%clk
0:00:25.7]} 61... Ke4 {[%clk 0:01:36.1]} 62. Ra8 {[%clk 0:00:21.8]} 62... Rc3+
{[%clk 0:01:35.9]} 63. Kg2 {[%clk 0:00:22]} 63... Rc2+ {[%clk 0:01:35.3]} 64.
Kh3 {[%clk 0:00:21.6]} 64... Rc3+ {[%clk 0:01:20.1]} 65. Kg2 {[%clk 0:00:21.4]}
65... Kf4 {[%clk 0:01:19.9]} 66. Ra4+ {[%clk 0:00:17.5]} 66... Ke3 {[%clk
0:01:20.3]} 67. Ra5 {[%clk 0:00:16.4]} 67... Rc2+ {[%clk 0:01:20]} 68. Kg1
{[%clk 0:00:16.1]} 68... Kf4 {[%clk 0:01:18.5]} 69. Ra4+ {[%clk 0:00:15.9]}
69... Kg3 {[%clk 0:01:18.9]} 70. Kf1 {[%clk 0:00:15]} 70... Rh2 {[%clk
0:01:08.5]} 71. Ra3+ {[%clk 0:00:12.9]} 71... Kxh4 {[%clk 0:01:07.2]} 72. Kg1
{[%clk 0:00:08.3]} 72... Rc2 {[%clk 0:01:06.5]} 73. Ra4+ {[%clk 0:00:06.7]}
73... Kg3 {[%clk 0:01:06.9]} 74. Ra3+ {[%clk 0:00:06.3]} 74... Kg4 {[%clk
0:01:07.4]} 75. Ra8 {[%clk 0:00:06.2]} 75... h4 {[%clk 0:01:06.1]} 76. Rg8+
{[%clk 0:00:06]} 76... Kf3 {[%clk 0:01:06.5]} 77. Rh8 {[%clk 0:00:05.1]} 77...
Rc4 {[%clk 0:00:54.7]} 78. Kh2 {[%clk 0:00:04.4]} 78... f4 {[%clk 0:00:39.2]}
79. Ra8 {[%clk 0:00:02.6]} 79... Rc3 {[%clk 0:00:32.1]} 80. Ra2 {[%clk
0:00:01.3]} 80... Re3 {[%clk 0:00:29.7]} 81. Kh3 {[%clk 0:00:01.3]} 81... Rd3
{[%clk 0:00:08.8]} 82. Kxh4 {[%clk 0:00:01.4]} 82... Ke3 {[%clk 0:00:03]} 83.
Kg4 {[%clk 0:00:01.8]} 83... f3 {[%clk 0:00:03.2]} 84. Ra8 {[%clk 0:00:01.1]}
84... f2 {[%clk 0:00:03]} 85. Re8+ {[%clk 0:00:01.3]} 85... Kd2 {[%clk
0:00:03.6]} 86. Rf8 {[%clk 0:00:01.8]} 86... Ke2 {[%clk 0:00:03.9]} 87. Re8+
{[%clk 0:00:02]} 87... Re3 {[%clk 0:00:04.5]} 88. Rf8 {[%clk 0:00:01.9]} 88...
f1=Q {[%clk 0:00:05]} 89. Rxf1 {[%clk 0:00:02]} 89... Kxf1 {[%clk 0:00:05.9]}
90. Kf4 {[%clk 0:00:02.9]} 90... Ke2 {[%clk 0:00:06.8]} 91. Kg4 {[%clk
0:00:03.3]} 91... Rf3 {[%clk 0:00:07.2]} 92. Kh4 {[%clk 0:00:03.5]} 92... Ke3
{[%clk 0:00:08.1]} 93. Kg4 {[%clk 0:00:04.4]} 93... Ke4 {[%clk 0:00:08.7]} 0-1

[Event "Early-Titled-Tuesday-Blitz-January-23-2024"]
[Site "Chess.com"]
[Date "2024.01.23"]
[Round "11"]
[White "JeFumeDesClopes"]
[Black "KNVB"]
[Result "1-0"]
[WhiteElo "2562"]
[BlackElo "2739"]
[TimeControl "180+1"]
[EndTime "10:09:51 PST"]
[Termination "JeFumeDesClopes won by resignation"]

1. Nf3 {[%clk 0:03:00.9]} 1... b6 {[%clk 0:02:59.6]} 2. c4 {[%clk 0:02:57]} 2...
Bb7 {[%clk 0:02:56]} 3. g3 {[%clk 0:02:57.5]} 3... Bxf3 {[%clk 0:02:56]} 4. exf3
{[%clk 0:02:58.4]} 4... c5 {[%clk 0:02:56.5]} 5. d4 {[%clk 0:02:58.8]} 5... cxd4
{[%clk 0:02:57.4]} 6. Qxd4 {[%clk 0:02:59.5]} 6... Nc6 {[%clk 0:02:58]} 7. Qd1
{[%clk 0:03:00.2]} 7... Rc8 {[%clk 0:02:58.3]} 8. Bg2 {[%clk 0:02:57.9]} 8... e6
{[%clk 0:02:56.2]} 9. O-O {[%clk 0:02:57.1]} 9... Nf6 {[%clk 0:02:57.1]} 10. Nc3
{[%clk 0:02:56]} 10... Be7 {[%clk 0:02:58]} 11. b3 {[%clk 0:02:56.5]} 11... O-O
{[%clk 0:02:58.9]} 12. Bb2 {[%clk 0:02:57.1]} 12... Qc7 {[%clk 0:02:59.5]} 13.
f4 {[%clk 0:02:55.8]} 13... a6 {[%clk 0:02:59.9]} 14. Rc1 {[%clk 0:02:55.6]}
14... Rfd8 {[%clk 0:03:00.4]} 15. Re1 {[%clk 0:02:53.5]} 15... Qb8 {[%clk
0:03:00.2]} 16. Qd2 {[%clk 0:02:48.4]} 16... d5 {[%clk 0:02:51.4]} 17. cxd5
{[%clk 0:02:47.8]} 17... Nb4 {[%clk 0:02:52]} 18. Qd4 {[%clk 0:02:40.3]} 18...
Bc5 {[%clk 0:02:47.4]} 19. Qd2 {[%clk 0:02:35.2]} 19... Nbxd5 {[%clk 0:02:40.5]}
20. Nxd5 {[%clk 0:02:31.4]} 20... Nxd5 {[%clk 0:02:41.4]} 21. Qe2 {[%clk
0:02:27.1]} 21... Bb4 {[%clk 0:02:34.5]} 22. Red1 {[%clk 0:02:19.8]} 22... Rxc1
{[%clk 0:02:06.1]} 23. Rxc1 {[%clk 0:02:16.2]} 23... Bf8 {[%clk 0:02:06]} 24.
Qxa6 {[%clk 0:02:09.7]} 24... Nb4 {[%clk 0:02:05.4]} 25. Qc4 {[%clk 0:01:40.6]}
25... Nd3 {[%clk 0:00:47.7]} 26. Rb1 {[%clk 0:01:36.9]} 26... b5 {[%clk
0:00:45.1]} 27. Qc2 {[%clk 0:01:18.6]} 27... Nxb2 {[%clk 0:00:44.7]} 28. Qxb2
{[%clk 0:01:17.3]} 28... b4 {[%clk 0:00:45.6]} 29. h4 {[%clk 0:01:14.6]} 29...
h5 {[%clk 0:00:43.5]} 30. Rc1 {[%clk 0:01:08.8]} 30... g6 {[%clk 0:00:42.4]} 31.
Bf3 {[%clk 0:01:04.8]} 31... Rd3 {[%clk 0:00:36.2]} 32. Qe2 {[%clk 0:01:00.8]}
32... Qd8 {[%clk 0:00:29.3]} 33. Rd1 {[%clk 0:00:59.2]} 33... Rxd1+ {[%clk
0:00:28.5]} 34. Qxd1 {[%clk 0:01:00.1]} 34... Qb6 {[%clk 0:00:28.5]} 35. Qd7
{[%clk 0:00:54.7]} 35... Bc5 {[%clk 0:00:22.9]} 36. Qd2 {[%clk 0:00:31.9]} 36...
Bd4 {[%clk 0:00:22.9]} 37. Kg2 {[%clk 0:00:31.2]} 37... Qc5 {[%clk 0:00:22.3]}
38. Qe2 {[%clk 0:00:26.6]} 38... Qc1 {[%clk 0:00:16.7]} 39. Be4 {[%clk
0:00:19.8]} 39... Kg7 {[%clk 0:00:12]} 40. Bd3 {[%clk 0:00:19.3]} 40... Qc6+
{[%clk 0:00:07.6]} 41. Qe4 {[%clk 0:00:16.1]} 41... Qc3 {[%clk 0:00:06.5]} 42.
Bc4 {[%clk 0:00:14.7]} 42... Qb2 {[%clk 0:00:04.5]} 43. Qe2 {[%clk 0:00:14.2]}
43... Qa1 {[%clk 0:00:04.7]} 44. Qd2 {[%clk 0:00:12.8]} 44... Bc5 {[%clk
0:00:04.3]} 45. Qe2 {[%clk 0:00:12.8]} 45... Bd4 {[%clk 0:00:04.1]} 46. g4
{[%clk 0:00:12.2]} 46... hxg4 {[%clk 0:00:04]} 47. Qxg4 {[%clk 0:00:13.1]} 47...
Qb2 {[%clk 0:00:03.8]} 48. Qg3 {[%clk 0:00:12.4]} 48... f6 {[%clk 0:00:03.2]}
49. h5 {[%clk 0:00:11.9]} 49... f5 {[%clk 0:00:03.4]} 50. Qxg6+ {[%clk
0:00:11.8]} 50... Kf8 {[%clk 0:00:04]} 51. Qg3 {[%clk 0:00:10.4]} 51... Qd2
{[%clk 0:00:04.1]} 52. Bxe6 {[%clk 0:00:09.6]} 52... Ke7 {[%clk 0:00:04.2]} 53.
Bc4 {[%clk 0:00:09.6]} 53... Bf6 {[%clk 0:00:04.3]} 54. Qe3+ {[%clk 0:00:09.5]}
54... Qxe3 {[%clk 0:00:04.6]} 55. fxe3 {[%clk 0:00:10.4]} 55... Bc3 {[%clk
0:00:04.6]} 56. Kf3 {[%clk 0:00:10.2]} 56... Kf6 {[%clk 0:00:05.2]} 57. e4
{[%clk 0:00:10.5]} 57... fxe4+ {[%clk 0:00:06.1]} 58. Kxe4 {[%clk 0:00:11.4]}
58... Bb2 {[%clk 0:00:05.7]} 59. Be2 {[%clk 0:00:11.3]} 59... Ke6 {[%clk
0:00:04.8]} 60. h6 {[%clk 0:00:10.6]} 60... Kd6 {[%clk 0:00:03.3]} 61. Kf5
{[%clk 0:00:09.6]} 61... Ke7 {[%clk 0:00:03.1]} 62. Kg6 {[%clk 0:00:09.7]} 62...
Bd4 {[%clk 0:00:02.2]} 63. Bc4 {[%clk 0:00:10]} 63... Bc3 {[%clk 0:00:01.8]} 64.
f5 {[%clk 0:00:09.7]} 64... Bd4 {[%clk 0:00:02.2]} 65. Kh7 {[%clk 0:00:07.5]}
65... Kf8 {[%clk 0:00:01.6]} 66. Kg6 {[%clk 0:00:07.2]} 66... Ke7 {[%clk
0:00:02.2]} 67. h7 {[%clk 0:00:05.7]} 67... Be5 {[%clk 0:00:02.4]} 68. Kg5
{[%clk 0:00:06.1]} 68... Bf6+ {[%clk 0:00:02.3]} 69. Kg4 {[%clk 0:00:06.6]}
69... Kd6 {[%clk 0:00:02.5]} 70. Kf4 {[%clk 0:00:06.9]} 70... Kc5 {[%clk
0:00:02.3]} 71. Ke4 {[%clk 0:00:07.2]} 71... Bg7 {[%clk 0:00:02.3]} 72. Kd3
{[%clk 0:00:06.4]} 72... Bf6 {[%clk 0:00:02.6]} 73. Ke4 {[%clk 0:00:06.1]} 73...
Bg7 {[%clk 0:00:02.8]} 74. f6 {[%clk 0:00:05.4]} 74... Bxf6 {[%clk 0:00:03]} 75.
Kf5 {[%clk 0:00:06.1]} 75... Bh8 {[%clk 0:00:02]} 76. Kg6 {[%clk 0:00:06.1]}
76... Kd6 {[%clk 0:00:02.5]} 77. Kf7 {[%clk 0:00:06.7]} 77... Be5 {[%clk
0:00:02.2]} 78. Kg8 {[%clk 0:00:07.5]} 78... Ke7 {[%clk 0:00:02.6]} 79. h8=Q
{[%clk 0:00:08.3]} 79... Bxh8 {[%clk 0:00:02.8]} 80. Kxh8 {[%clk 0:00:09.2]}
80... Kf6 {[%clk 0:00:02.8]} 81. Kh7 {[%clk 0:00:10.1]} 81... Kf5 {[%clk
0:00:02.6]} 82. Kg7 {[%clk 0:00:10.5]} 82... Ke5 {[%clk 0:00:03.3]} 83. Kf7
{[%clk 0:00:11.4]} 83... Kd6 {[%clk 0:00:02.7]} 84. Kf6 {[%clk 0:00:11.5]} 84...
Kc5 {[%clk 0:00:01.5]} 85. Ke5 {[%clk 0:00:11.7]} 85... Kc6 {[%clk 0:00:02.2]}
86. Kd4 {[%clk 0:00:11.8]} 86... Kb6 {[%clk 0:00:01.9]} 87. Kd5 {[%clk 0:00:12]}
87... Ka5 {[%clk 0:00:02.5]} 88. Bd3 {[%clk 0:00:10.8]} 88... Kb6 {[%clk
0:00:02.8]} 89. Kc4 {[%clk 0:00:10.6]} 89... Ka5 {[%clk 0:00:03.5]} 90. Bc2
{[%clk 0:00:10.2]} 90... Kb6 {[%clk 0:00:03.7]} 91. Kxb4 {[%clk 0:00:10.9]}
91... Ka6 {[%clk 0:00:04.4]} 92. a4 {[%clk 0:00:11.6]} 92... Kb6 {[%clk
0:00:04.6]} 93. Ka3 {[%clk 0:00:12.5]} 93... Ka5 {[%clk 0:00:04.4]} 94. b4+
{[%clk 0:00:13.4]} 94... Kb6 {[%clk 0:00:04.4]} 95. Kb3 {[%clk 0:00:13.9]} 95...
Ka6 {[%clk 0:00:05.2]} 96. Kc4 {[%clk 0:00:14.6]} 96... Kb6 {[%clk 0:00:05.8]}
97. a5+ {[%clk 0:00:15.3]} 97... Ka6 {[%clk 0:00:06.4]} 98. Ba4 {[%clk
0:00:14.9]} 98... Ka7 {[%clk 0:00:06.4]} 99. b5 {[%clk 0:00:15.6]} 99... Kb7
{[%clk 0:00:06.9]} 100. Kc5 {[%clk 0:00:15.8]} 100... Ka7 {[%clk 0:00:07.8]}
101. Bc2 {[%clk 0:00:16.1]} 101... Kb8 {[%clk 0:00:08.1]} 102. Be4 {[%clk
0:00:16]} 102... Ka7 {[%clk 0:00:08.8]} 103. a6 {[%clk 0:00:14.6]} 103... Kb8
{[%clk 0:00:08.9]} 104. b6 {[%clk 0:00:14.5]} 104... Kc8 {[%clk 0:00:09.4]} 105.
a7 {[%clk 0:00:14.3]} 1-0

[Event "Early-Titled-Tuesday-Blitz-January-23-2024"]
[Site "Chess.com"]
[Date "2024.01.23"]
[Round "11"]
[White "RantomOpening"]
[Black "Goryachkina"]
[Result "1/2-1/2"]
[WhiteElo "2535"]
[BlackElo "2693"]
[TimeControl "180+1"]
[EndTime "10:10:05 PST"]
[Termination "Game drawn by repetition"]

1. e4 {[%clk 0:02:58.8]} 1... c5 {[%clk 0:03:00]} 2. c3 {[%clk 0:02:58.7]} 2...
Nf6 {[%clk 0:02:57.6]} 3. e5 {[%clk 0:02:59]} 3... Nd5 {[%clk 0:02:58.1]} 4. Nf3
{[%clk 0:02:59.5]} 4... Nc6 {[%clk 0:02:57.1]} 5. d4 {[%clk 0:02:59.2]} 5...
cxd4 {[%clk 0:02:55.5]} 6. cxd4 {[%clk 0:03:00.1]} 6... d6 {[%clk 0:02:55.3]} 7.
Bc4 {[%clk 0:03:00.5]} 7... Nb6 {[%clk 0:02:53.5]} 8. Bb5 {[%clk 0:03:00.4]}
8... dxe5 {[%clk 0:02:47.5]} 9. Nxe5 {[%clk 0:03:01.3]} 9... Bd7 {[%clk
0:02:45.7]} 10. Nxd7 {[%clk 0:03:01.8]} 10... Qxd7 {[%clk 0:02:45.9]} 11. Nc3
{[%clk 0:03:02.2]} 11... e6 {[%clk 0:02:46.1]} 12. O-O {[%clk 0:03:00.7]} 12...
a6 {[%clk 0:02:43]} 13. Bxc6 {[%clk 0:02:59.2]} 13... Qxc6 {[%clk 0:02:43.1]}
14. Bf4 {[%clk 0:02:56.6]} 14... Be7 {[%clk 0:02:35.8]} 15. Rc1 {[%clk
0:02:55.5]} 15... O-O {[%clk 0:02:27.3]} 16. Qg4 {[%clk 0:02:53.1]} 16... Rfc8
{[%clk 0:02:03.5]} 17. Bh6 {[%clk 0:02:36.8]} 17... Bf8 {[%clk 0:01:38.7]} 18.
h4 {[%clk 0:02:33.7]} 18... Kh8 {[%clk 0:01:31.5]} 19. Bf4 {[%clk 0:02:33.5]}
19... Nd5 {[%clk 0:01:27.2]} 20. Ne4 {[%clk 0:02:29.9]} 20... Qb5 {[%clk
0:01:24.7]} 21. Ng5 {[%clk 0:02:28.1]} 21... Qe8 {[%clk 0:00:58.2]} 22. Bd2
{[%clk 0:02:10.4]} 22... h6 {[%clk 0:00:54.7]} 23. Qh5 {[%clk 0:02:10.6]} 23...
Kg8 {[%clk 0:00:52.4]} 24. Ne4 {[%clk 0:02:09.2]} 24... Rxc1 {[%clk 0:00:46.2]}
25. Rxc1 {[%clk 0:02:10.1]} 25... Rc8 {[%clk 0:00:43.8]} 26. Nc3 {[%clk
0:02:07.1]} 26... Qd7 {[%clk 0:00:37.9]} 27. Nxd5 {[%clk 0:01:58.9]} 27... Rxc1+
{[%clk 0:00:37.5]} 28. Bxc1 {[%clk 0:01:58.9]} 28... Qxd5 {[%clk 0:00:37.8]} 29.
Qxd5 {[%clk 0:01:58.8]} 29... exd5 {[%clk 0:00:38.7]} 30. h5 {[%clk 0:01:58.7]}
30... g6 {[%clk 0:00:35.1]} 31. hxg6 {[%clk 0:01:58.2]} 31... fxg6 {[%clk
0:00:36]} 32. Kf1 {[%clk 0:01:54.3]} 32... Kf7 {[%clk 0:00:36.3]} 33. Ke2 {[%clk
0:01:54.4]} 33... h5 {[%clk 0:00:35.9]} 34. Bf4 {[%clk 0:01:54.3]} 34... Ke6
{[%clk 0:00:36]} 35. Be5 {[%clk 0:01:53.8]} 35... Kf5 {[%clk 0:00:36.3]} 36. Kd3
{[%clk 0:01:41.2]} 36... g5 {[%clk 0:00:36.2]} 37. Ke3 {[%clk 0:01:39.3]} 37...
g4 {[%clk 0:00:35.9]} 38. f3 {[%clk 0:01:38.7]} 38... Bh6+ {[%clk 0:00:35.1]}
39. Ke2 {[%clk 0:01:36.2]} 39... Bc1 {[%clk 0:00:34.7]} 40. b3 {[%clk
0:01:36.3]} 40... Bg5 {[%clk 0:00:28.6]} 41. Kf2 {[%clk 0:01:35.5]} 41... b5
{[%clk 0:00:26.3]} 42. a4 {[%clk 0:01:34.8]} 42... bxa4 {[%clk 0:00:26.4]} 43.
bxa4 {[%clk 0:01:35.7]} 43... Be7 {[%clk 0:00:26]} 44. Kg3 {[%clk 0:01:34.2]}
44... h4+ {[%clk 0:00:21.1]} 45. Kf2 {[%clk 0:01:34.2]} 45... Bg5 {[%clk
0:00:19.9]} 46. fxg4+ {[%clk 0:01:30.9]} 46... Kxg4 {[%clk 0:00:20.1]} 47. Bg7
{[%clk 0:01:22.3]} 47... Bf4 {[%clk 0:00:19.8]} 48. Bf6 {[%clk 0:01:17.2]} 48...
Bg3+ {[%clk 0:00:19.8]} 49. Ke2 {[%clk 0:01:17.5]} 49... Kf4 {[%clk 0:00:20]}
50. Kd3 {[%clk 0:01:17.7]} 50... Bf2 {[%clk 0:00:16.7]} 51. Be5+ {[%clk
0:01:11.1]} 51... Kg4 {[%clk 0:00:17]} 52. Ke2 {[%clk 0:01:11.5]} 52... Bg3
{[%clk 0:00:16.8]} 53. Bg7 {[%clk 0:00:57.4]} 53... Bh2 {[%clk 0:00:13.6]} 54.
Kf2 {[%clk 0:00:45]} 54... Bd6 {[%clk 0:00:13.7]} 55. Ke2 {[%clk 0:00:43.5]}
55... Bc7 {[%clk 0:00:12.3]} 56. Kd3 {[%clk 0:00:32.4]} 56... Ba5 {[%clk
0:00:11.1]} 57. Be5 {[%clk 0:00:30.4]} 57... Be1 {[%clk 0:00:10.2]} 58. Ke2
{[%clk 0:00:30.1]} 58... Bb4 {[%clk 0:00:10.3]} 59. Bc7 {[%clk 0:00:28.3]} 59...
Ba3 {[%clk 0:00:08.4]} 60. Kd3 {[%clk 0:00:23.2]} 60... Bb4 {[%clk 0:00:08.2]}
61. Kc2 {[%clk 0:00:19.8]} 61... Be1 {[%clk 0:00:07.9]} 62. Kd3 {[%clk 0:00:18]}
62... Bb4 {[%clk 0:00:08]} 63. Be5 {[%clk 0:00:17.6]} 63... Be1 {[%clk 0:00:08]}
64. Bh2 {[%clk 0:00:17.1]} 64... Bg3 {[%clk 0:00:07]} 65. Bg1 {[%clk 0:00:17.7]}
65... Bd6 {[%clk 0:00:06.6]} 66. Bf2 {[%clk 0:00:16.1]} 66... Bb4 {[%clk
0:00:06.6]} 67. Kc2 {[%clk 0:00:14.5]} 67... Ba5 {[%clk 0:00:06.8]} 68. Kb3
{[%clk 0:00:14.7]} 68... Bd2 {[%clk 0:00:06.9]} 69. Kc2 {[%clk 0:00:11.3]} 69...
Bf4 {[%clk 0:00:07.2]} 70. Kc3 {[%clk 0:00:10.4]} 70... Bg3 {[%clk 0:00:06.9]}
71. Be3 {[%clk 0:00:10.9]} 71... Bd6 {[%clk 0:00:07]} 72. Kb3 {[%clk 0:00:09.9]}
72... Kg3 {[%clk 0:00:05.6]} 73. Bg5 {[%clk 0:00:10.6]} 73... Kg4 {[%clk
0:00:06]} 74. Be3 {[%clk 0:00:10.3]} 74... Be7 {[%clk 0:00:06.3]} 75. Bf2 {[%clk
0:00:10.1]} 75... Kf4 {[%clk 0:00:06.8]} 76. Kc3 {[%clk 0:00:10]} 76... Ke4
{[%clk 0:00:07.3]} 77. Be1 {[%clk 0:00:09]} 77... Bf6 {[%clk 0:00:07.5]} 78. Bf2
{[%clk 0:00:09.5]} 78... Bg5 {[%clk 0:00:07.9]} 79. Kb4 {[%clk 0:00:08.4]} 79...
Bd2+ {[%clk 0:00:07.7]} 80. Kb3 {[%clk 0:00:08.1]} 80... Be3 {[%clk 0:00:05.8]}
81. Bxh4 {[%clk 0:00:08.3]} 81... Bxd4 {[%clk 0:00:06.2]} 82. Be1 {[%clk
0:00:06.8]} 82... Bb6 {[%clk 0:00:06.3]} 83. Kb4 {[%clk 0:00:07.1]} 83... d4
{[%clk 0:00:06.5]} 84. Kc4 {[%clk 0:00:07.2]} 84... d3 {[%clk 0:00:06.7]} 85.
Bd2 {[%clk 0:00:07.6]} 85... Be3 {[%clk 0:00:05.7]} 86. Kc3 {[%clk 0:00:08.1]}
86... Bd4+ {[%clk 0:00:05.8]} 87. Kc4 {[%clk 0:00:08.3]} 87... Be3 {[%clk
0:00:06]} 88. Kc3 {[%clk 0:00:08.7]} 88... Bd4+ {[%clk 0:00:06.3]} 89. Kc4
{[%clk 0:00:07.8]} 89... Be3 {[%clk 0:00:06.6]} 1/2-1/2